[Event "Early-Titled-Tuesday-Blitz-January-30-2024"]
[Site "Chess.com"]
[Date "2024.01.30"]
[Round "11"]
[White "josmito10"]
[Black "GMWSO"]
[Result "1-0"]
[WhiteElo "2802"]
[BlackElo "3098"]
[TimeControl "180+1"]
[EndTime "10:08:09 PST"]
[Termination "josmito10 won by resignation"]

1. e4 {[%clk 0:02:59.3]} 1... c6 {[%clk 0:02:57.6]} 2. d4 {[%clk 0:02:59.2]}
2... d5 {[%clk 0:02:58.5]} 3. exd5 {[%clk 0:02:59.7]} 3... cxd5 {[%clk
0:02:56.9]} 4. Nf3 {[%clk 0:02:59.9]} 4... Bg4 {[%clk 0:02:51.7]} 5. c3 {[%clk
0:03:00.1]} 5... Nc6 {[%clk 0:02:51.1]} 6. Nbd2 {[%clk 0:03:00.2]} 6... e6
{[%clk 0:02:50.4]} 7. Be2 {[%clk 0:03:00.5]} 7... Bd6 {[%clk 0:02:49.8]} 8. O-O
{[%clk 0:03:01.2]} 8... Qc7 {[%clk 0:02:47.6]} 9. Re1 {[%clk 0:03:01]} 9... Nf6
{[%clk 0:02:44.1]} 10. Nf1 {[%clk 0:03:01.1]} 10... O-O {[%clk 0:02:43.1]} 11.
Ng3 {[%clk 0:03:01.5]} 11... Rab8 {[%clk 0:02:35.3]} 12. Bd3 {[%clk 0:02:59.1]}
12... b5 {[%clk 0:02:32.6]} 13. h3 {[%clk 0:02:59.1]} 13... Bxf3 {[%clk
0:02:31.3]} 14. Qxf3 {[%clk 0:02:58.8]} 14... b4 {[%clk 0:02:30.3]} 15. Bg5
{[%clk 0:02:58.1]} 15... Nd7 {[%clk 0:02:18.8]} 16. Nh5 {[%clk 0:02:57.8]} 16...
bxc3 {[%clk 0:02:14]} 17. Bh6 {[%clk 0:02:55.5]} 17... g6 {[%clk 0:02:08.2]} 18.
Nf6+ {[%clk 0:02:44.6]} 18... Kh8 {[%clk 0:02:07.4]} 19. Nxd7 {[%clk 0:02:44.5]}
19... Be7 {[%clk 0:02:04.8]} 20. Nxf8 {[%clk 0:02:34.7]} 20... cxb2 {[%clk
0:01:54.3]} 21. Qxf7 {[%clk 0:02:29.1]} 21... Bxf8 {[%clk 0:01:41.9]} 22. Qxc7
{[%clk 0:02:28.4]} 1-0

[Event "Early-Titled-Tuesday-Blitz-January-30-2024"]
[Site "Chess.com"]
[Date "2024.01.30"]
[Round "11"]
[White "deepfear"]
[Black "nikitadovbnya2008"]
[Result "1-0"]
[WhiteElo "1964"]
[BlackElo "2106"]
[TimeControl "180+1"]
[EndTime "10:08:15 PST"]
[Termination "deepfear won by resignation"]

1. e4 {[%clk 0:02:57.3]} 1... e5 {[%clk 0:02:16.1]} 2. Nf3 {[%clk 0:02:55.6]}
2... Nc6 {[%clk 0:02:16]} 3. d4 {[%clk 0:02:53.8]} 3... exd4 {[%clk 0:02:15.3]}
4. Nxd4 {[%clk 0:02:54.7]} 4... Nf6 {[%clk 0:02:09.9]} 5. Nxc6 {[%clk
0:02:54.2]} 5... bxc6 {[%clk 0:02:10.8]} 6. e5 {[%clk 0:02:54.6]} 6... Qe7
{[%clk 0:02:11.3]} 7. Qe2 {[%clk 0:02:52.4]} 7... Nd5 {[%clk 0:02:11.8]} 8. h4
{[%clk 0:02:50.4]} 8... g6 {[%clk 0:02:10.8]} 9. Bg5 {[%clk 0:02:34.9]} 9...
Qb4+ {[%clk 0:02:06.5]} 10. c3 {[%clk 0:02:33.8]} 10... Qb6 {[%clk 0:02:01.6]}
11. Rh3 {[%clk 0:02:11]} 11... Bc5 {[%clk 0:01:52.2]} 12. b4 {[%clk 0:02:00.9]}
12... Be7 {[%clk 0:01:45.3]} 13. Bh6 {[%clk 0:01:42.7]} 13... Ba6 {[%clk
0:01:44]} 14. Qxa6 {[%clk 0:01:39.7]} 1-0

[Event "Early-Titled-Tuesday-Blitz-January-30-2024"]
[Site "Chess.com"]
[Date "2024.01.30"]
[Round "11"]
[White "dianamirza"]
[Black "kai_nov"]
[Result "0-1"]
[WhiteElo "1983"]
[BlackElo "2234"]
[TimeControl "180+1"]
[EndTime "10:08:16 PST"]
[Termination "kai_nov won by resignation"]

1. e4 {[%clk 0:02:55.5]} 1... c5 {[%clk 0:02:59.4]} 2. Nf3 {[%clk 0:02:54.5]}
2... Nc6 {[%clk 0:02:57.4]} 3. d4 {[%clk 0:02:54.3]} 3... cxd4 {[%clk
0:02:41.1]} 4. Nxd4 {[%clk 0:02:55.2]} 4... e5 {[%clk 0:02:41]} 5. Nxc6 {[%clk
0:02:52.1]} 5... bxc6 {[%clk 0:02:39.8]} 6. Nc3 {[%clk 0:02:50.2]} 6... Nf6
{[%clk 0:02:39.2]} 7. Bd3 {[%clk 0:02:50.2]} 7... Bb4 {[%clk 0:02:38.8]} 8. O-O
{[%clk 0:02:50.5]} 8... O-O {[%clk 0:02:38.2]} 9. Bd2 {[%clk 0:02:48.7]} 9... d5
{[%clk 0:02:37]} 10. exd5 {[%clk 0:02:44.1]} 10... cxd5 {[%clk 0:02:35.5]} 11.
a3 {[%clk 0:02:43]} 11... Bxc3 {[%clk 0:02:33.1]} 12. Bxc3 {[%clk 0:02:43.9]}
12... d4 {[%clk 0:02:29.2]} 13. Bb4 {[%clk 0:02:43.6]} 13... Re8 {[%clk
0:02:28.2]} 14. Re1 {[%clk 0:02:21.5]} 14... Bd7 {[%clk 0:02:22.4]} 15. Qf3
{[%clk 0:01:44.1]} 15... Rc8 {[%clk 0:02:14.6]} 16. Bd6 {[%clk 0:01:42.2]} 16...
Bc6 {[%clk 0:02:12.1]} 17. Be4 {[%clk 0:01:33.8]} 17... Bxe4 {[%clk 0:02:07.3]}
18. Rxe4 {[%clk 0:01:34.7]} 18... Qxd6 {[%clk 0:02:06.7]} 19. Rae1 {[%clk
0:01:29.8]} 19... Nxe4 {[%clk 0:02:06.1]} 0-1

[Event "Early-Titled-Tuesday-Blitz-January-30-2024"]
[Site "Chess.com"]
[Date "2024.01.30"]
[Round "11"]
[White "ansko1999"]
[Black "ural58"]
[Result "1-0"]
[WhiteElo "2667"]
[BlackElo "2452"]
[TimeControl "180+1"]
[EndTime "10:08:51 PST"]
[Termination "ansko1999 won by resignation"]

1. e3 {[%clk 0:02:55.5]} 1... b6 {[%clk 0:02:56.9]} 2. d4 {[%clk 0:02:43.6]}
2... Bb7 {[%clk 0:02:56.3]} 3. c4 {[%clk 0:02:44.3]} 3... e6 {[%clk 0:02:32.3]}
4. a3 {[%clk 0:02:37.7]} 4... f5 {[%clk 0:02:28.6]} 5. Nc3 {[%clk 0:02:36.6]}
5... Nf6 {[%clk 0:02:28.3]} 6. f3 {[%clk 0:02:33.1]} 6... Be7 {[%clk 0:02:21.2]}
7. d5 {[%clk 0:02:28.9]} 7... exd5 {[%clk 0:02:16.4]} 8. cxd5 {[%clk 0:02:29.8]}
8... Bc5 {[%clk 0:02:14.3]} 9. Bd3 {[%clk 0:02:23.7]} 9... O-O {[%clk
0:02:10.3]} 10. Nge2 {[%clk 0:02:17.8]} 10... Qe7 {[%clk 0:01:59.4]} 11. Bc4
{[%clk 0:02:00.3]} 11... d6 {[%clk 0:01:54.8]} 12. Nd4 {[%clk 0:01:56.8]} 12...
a6 {[%clk 0:01:19.9]} 13. b4 {[%clk 0:01:51.8]} 13... Bxd4 {[%clk 0:01:12.3]}
14. Qxd4 {[%clk 0:01:52.7]} 14... c5 {[%clk 0:01:10.3]} 15. dxc6+ {[%clk
0:01:50.7]} 15... d5 {[%clk 0:01:10.4]} 16. cxb7 {[%clk 0:01:47.6]} 1-0

[Event "Early-Titled-Tuesday-Blitz-January-30-2024"]
[Site "Chess.com"]
[Date "2024.01.30"]
[Round "11"]
[White "Hovik_Hayrapetyan"]
[Black "DenLaz"]
[Result "0-1"]
[WhiteElo "2782"]
[BlackElo "3040"]
[TimeControl "180+1"]
[EndTime "10:09:03 PST"]
[Termination "DenLaz won by resignation"]

1. d4 {[%clk 0:02:58]} 1... Nf6 {[%clk 0:03:00.5]} 2. c4 {[%clk 0:02:57.4]} 2...
e6 {[%clk 0:03:01.2]} 3. Nc3 {[%clk 0:02:57.1]} 3... Bb4 {[%clk 0:03:01.7]} 4.
e3 {[%clk 0:02:53.2]} 4... O-O {[%clk 0:03:02.2]} 5. Bd3 {[%clk 0:02:52.1]} 5...
c5 {[%clk 0:03:02.4]} 6. Nf3 {[%clk 0:02:48.2]} 6... d5 {[%clk 0:03:00.2]} 7.
O-O {[%clk 0:02:42.1]} 7... Nc6 {[%clk 0:02:57.8]} 8. a3 {[%clk 0:02:37.5]} 8...
Bxc3 {[%clk 0:02:48.5]} 9. bxc3 {[%clk 0:02:38.4]} 9... dxc4 {[%clk 0:02:48.8]}
10. Bxc4 {[%clk 0:02:38.5]} 10... Qc7 {[%clk 0:02:49.5]} 11. Be2 {[%clk
0:02:35.5]} 11... Rd8 {[%clk 0:02:45]} 12. Qc2 {[%clk 0:02:27]} 12... e5 {[%clk
0:02:43.7]} 13. dxe5 {[%clk 0:02:15.8]} 13... Nxe5 {[%clk 0:02:42.3]} 14. Nxe5
{[%clk 0:02:07.4]} 14... Qxe5 {[%clk 0:02:43.2]} 15. f3 {[%clk 0:02:01.5]} 15...
Nd5 {[%clk 0:02:41.8]} 16. e4 {[%clk 0:01:45]} 16... Qxc3 {[%clk 0:02:34.3]} 17.
Qa2 {[%clk 0:01:21.5]} 17... Qd4+ {[%clk 0:02:32.7]} 18. Kh1 {[%clk 0:01:19.9]}
18... Nc3 {[%clk 0:02:32.4]} 19. Qc2 {[%clk 0:01:04.5]} 19... Nxe2 {[%clk
0:02:31.5]} 20. Bb2 {[%clk 0:01:04.8]} 20... Qe3 {[%clk 0:02:26.2]} 21. Rfe1
{[%clk 0:00:56.5]} 21... Rd2 {[%clk 0:02:13.8]} 22. Rad1 {[%clk 0:00:56.1]}
22... Ng3+ {[%clk 0:02:11.4]} 23. hxg3 {[%clk 0:00:51.6]} 23... Qxe1+ {[%clk
0:02:12.3]} 24. Rxe1 {[%clk 0:00:51.7]} 24... Rxc2 {[%clk 0:02:11.6]} 25. Rd1
{[%clk 0:00:52.6]} 25... Be6 {[%clk 0:02:11.2]} 0-1

[Event "Early-Titled-Tuesday-Blitz-January-30-2024"]
[Site "Chess.com"]
[Date "2024.01.30"]
[Round "11"]
[White "UnTucopalaTimba"]
[Black "mertfelin"]
[Result "0-1"]
[WhiteElo "1945"]
[BlackElo "2276"]
[TimeControl "180+1"]
[EndTime "10:09:09 PST"]
[Termination "mertfelin won by resignation"]

1. e4 {[%clk 0:02:59.5]} 1... e5 {[%clk 0:03:00.1]} 2. Nf3 {[%clk 0:02:59]} 2...
Nc6 {[%clk 0:03:00.3]} 3. Bb5 {[%clk 0:02:59]} 3... a6 {[%clk 0:03:00.6]} 4. Ba4
{[%clk 0:02:59]} 4... Nf6 {[%clk 0:03:01]} 5. O-O {[%clk 0:02:59]} 5... d6
{[%clk 0:03:01.7]} 6. Re1 {[%clk 0:02:55.3]} 6... Bd7 {[%clk 0:03:01.2]} 7. c3
{[%clk 0:02:55.2]} 7... g6 {[%clk 0:03:01.4]} 8. d4 {[%clk 0:02:54.6]} 8... Bg7
{[%clk 0:03:01.8]} 9. d5 {[%clk 0:02:46.5]} 9... Ne7 {[%clk 0:03:02.1]} 10.
Bxd7+ {[%clk 0:02:45.8]} 10... Nxd7 {[%clk 0:03:03]} 11. c4 {[%clk 0:02:44.8]}
11... O-O {[%clk 0:03:02]} 12. Nc3 {[%clk 0:02:44]} 12... h6 {[%clk 0:03:01.9]}
13. b4 {[%clk 0:02:41.7]} 13... f5 {[%clk 0:03:02]} 14. exf5 {[%clk 0:02:27.7]}
14... gxf5 {[%clk 0:03:01.5]} 15. Nh4 {[%clk 0:02:26.9]} 15... Qe8 {[%clk
0:02:55.8]} 16. Re3 {[%clk 0:02:09.7]} 16... Nf6 {[%clk 0:02:49.2]} 17. f4
{[%clk 0:02:03.7]} 17... Ng4 {[%clk 0:02:42.1]} 18. Rg3 {[%clk 0:01:45.9]} 18...
exf4 {[%clk 0:02:36.8]} 19. Bxf4 {[%clk 0:01:45.2]} 19... Qh5 {[%clk 0:02:32.6]}
20. h3 {[%clk 0:01:37]} 20... Qxh4 {[%clk 0:02:32.4]} 21. hxg4 {[%clk
0:01:34.2]} 21... Ng6 {[%clk 0:02:13.4]} 22. Rh3 {[%clk 0:01:02.6]} 22... Qxg4
{[%clk 0:02:13.1]} 23. Qxg4 {[%clk 0:01:01.9]} 23... fxg4 {[%clk 0:02:14]} 24.
Bxh6 {[%clk 0:00:48]} 24... gxh3 {[%clk 0:02:13.6]} 25. Bxg7 {[%clk 0:00:47.8]}
25... Kxg7 {[%clk 0:02:14]} 26. gxh3 {[%clk 0:00:46.9]} 26... Rf3 {[%clk
0:02:13.1]} 0-1

[Event "Early-Titled-Tuesday-Blitz-January-30-2024"]
[Site "Chess.com"]
[Date "2024.01.30"]
[Round "11"]
[White "IngOscarArdila"]
[Black "Cambek64"]
[Result "0-1"]
[WhiteElo "2334"]
[BlackElo "2504"]
[TimeControl "180+1"]
[EndTime "10:09:17 PST"]
[Termination "Cambek64 won by resignation"]

1. d4 {[%clk 0:03:00.2]} 1... Nf6 {[%clk 0:02:55.2]} 2. c4 {[%clk 0:03:00.2]}
2... g6 {[%clk 0:02:54.8]} 3. Nf3 {[%clk 0:02:59.9]} 3... Bg7 {[%clk 0:02:55]}
4. e3 {[%clk 0:03:00.2]} 4... O-O {[%clk 0:02:54]} 5. Nc3 {[%clk 0:03:00.6]}
5... d6 {[%clk 0:02:53.5]} 6. Be2 {[%clk 0:03:00.9]} 6... Nbd7 {[%clk
0:02:50.1]} 7. O-O {[%clk 0:03:00.8]} 7... e5 {[%clk 0:02:50.4]} 8. Qc2 {[%clk
0:02:59.5]} 8... Re8 {[%clk 0:02:50.7]} 9. dxe5 {[%clk 0:02:59.1]} 9... dxe5
{[%clk 0:02:49.9]} 10. Rd1 {[%clk 0:02:58.5]} 10... c6 {[%clk 0:02:48.8]} 11. b3
{[%clk 0:02:54.7]} 11... Qc7 {[%clk 0:02:49.1]} 12. Ba3 {[%clk 0:02:53.5]} 12...
Bf8 {[%clk 0:02:49.6]} 13. Bxf8 {[%clk 0:02:51.3]} 13... Nxf8 {[%clk 0:02:46]}
14. c5 {[%clk 0:02:47.9]} 14... Bf5 {[%clk 0:02:40.1]} 15. Qb2 {[%clk
0:02:47.1]} 15... Ne6 {[%clk 0:02:34.5]} 16. b4 {[%clk 0:02:46.5]} 16... h5
{[%clk 0:02:16]} 17. Bc4 {[%clk 0:02:44.2]} 17... Bg4 {[%clk 0:02:09.9]} 18. Be2
{[%clk 0:02:33.6]} 18... Re7 {[%clk 0:01:58.5]} 19. h3 {[%clk 0:02:33.4]} 19...
Bxf3 {[%clk 0:01:57.8]} 20. Bxf3 {[%clk 0:02:32.9]} 20... Ng5 {[%clk 0:01:55.8]}
21. Be2 {[%clk 0:02:32]} 21... h4 {[%clk 0:01:55]} 22. Rd2 {[%clk 0:02:29.2]}
22... Rae8 {[%clk 0:01:52.5]} 23. Rad1 {[%clk 0:02:28.7]} 23... Qc8 {[%clk
0:01:51.7]} 24. Rd6 {[%clk 0:02:22.4]} 24... Nfh7 {[%clk 0:01:38.5]} 25. Ne4
{[%clk 0:02:18.3]} 25... Nxe4 {[%clk 0:01:23.1]} 26. Qc2 {[%clk 0:02:12.1]}
26... Nxd6 {[%clk 0:01:22]} 27. Rxd6 {[%clk 0:02:12.2]} 27... Re6 {[%clk
0:01:17.5]} 28. Bg4 {[%clk 0:02:07.9]} 28... f5 {[%clk 0:01:17.9]} 29. Be2
{[%clk 0:01:57.6]} 29... Rxd6 {[%clk 0:01:17.8]} 30. cxd6 {[%clk 0:01:57.7]}
30... Qd7 {[%clk 0:01:18]} 31. Qc5 {[%clk 0:01:56.1]} 31... b6 {[%clk
0:01:15.8]} 32. Bc4+ {[%clk 0:01:54.9]} 32... Kg7 {[%clk 0:01:16.3]} 0-1

[Event "Early-Titled-Tuesday-Blitz-January-30-2024"]
[Site "Chess.com"]
[Date "2024.01.30"]
[Round "11"]
[White "JeFumeDesClopes"]
[Black "Evgeny81"]
[Result "1-0"]
[WhiteElo "2603"]
[BlackElo "2708"]
[TimeControl "180+1"]
[EndTime "10:09:26 PST"]
[Termination "JeFumeDesClopes won by resignation"]

1. c4 {[%clk 0:02:55.8]} 1... f5 {[%clk 0:02:53.6]} 2. g3 {[%clk 0:02:51.2]}
2... Nf6 {[%clk 0:02:48.3]} 3. Bg2 {[%clk 0:02:51.6]} 3... e5 {[%clk 0:02:48.3]}
4. Nc3 {[%clk 0:02:50.9]} 4... d6 {[%clk 0:02:48.6]} 5. e3 {[%clk 0:02:48.5]}
5... Be7 {[%clk 0:02:49]} 6. Nge2 {[%clk 0:02:49.1]} 6... O-O {[%clk 0:02:49.2]}
7. d4 {[%clk 0:02:49.6]} 7... Nc6 {[%clk 0:02:45.4]} 8. b3 {[%clk 0:02:47.9]}
8... Kh8 {[%clk 0:02:45.3]} 9. Bb2 {[%clk 0:02:47.1]} 9... Qe8 {[%clk
0:02:45.6]} 10. Nd5 {[%clk 0:02:37.4]} 10... Bd8 {[%clk 0:02:44.9]} 11. Qc2
{[%clk 0:02:29.1]} 11... a5 {[%clk 0:02:37.9]} 12. a3 {[%clk 0:02:28]} 12... e4
{[%clk 0:02:25.7]} 13. Nxf6 {[%clk 0:02:24.2]} 13... Bxf6 {[%clk 0:02:25]} 14.
h4 {[%clk 0:02:24.1]} 14... Nd8 {[%clk 0:02:16.8]} 15. g4 {[%clk 0:02:13.1]}
15... fxg4 {[%clk 0:02:04.9]} 16. Bxe4 {[%clk 0:02:09.4]} 16... Qh5 {[%clk
0:01:55.6]} 17. Ng3 {[%clk 0:02:03.1]} 17... Qh6 {[%clk 0:01:54.9]} 18. O-O-O
{[%clk 0:01:56.5]} 18... c6 {[%clk 0:01:51.8]} 19. Kb1 {[%clk 0:01:49.4]} 19...
a4 {[%clk 0:01:47]} 20. b4 {[%clk 0:01:49.1]} 20... Be6 {[%clk 0:01:43.8]} 21.
Nf5 {[%clk 0:01:29.8]} 21... Bxf5 {[%clk 0:01:35.5]} 22. Bxf5 {[%clk 0:01:29.9]}
22... c5 {[%clk 0:01:33.2]} 23. b5 {[%clk 0:01:23.7]} 23... cxd4 {[%clk
0:01:24.1]} 24. exd4 {[%clk 0:01:24.6]} 24... Rc8 {[%clk 0:01:17.1]} 25. Bxc8
{[%clk 0:01:23.4]} 1-0

[Event "Early-Titled-Tuesday-Blitz-January-30-2024"]
[Site "Chess.com"]
[Date "2024.01.30"]
[Round "11"]
[White "Kostya0705"]
[Black "baki83"]
[Result "0-1"]
[WhiteElo "2611"]
[BlackElo "2804"]
[TimeControl "180+1"]
[EndTime "10:09:39 PST"]
[Termination "baki83 won by resignation"]

1. e4 {[%clk 0:02:59.6]} 1... c5 {[%clk 0:03:00]} 2. Nf3 {[%clk 0:02:59.9]} 2...
Nc6 {[%clk 0:02:59.9]} 3. Nc3 {[%clk 0:02:59.8]} 3... d6 {[%clk 0:02:58.4]} 4.
d4 {[%clk 0:02:59.6]} 4... cxd4 {[%clk 0:02:58.6]} 5. Nxd4 {[%clk 0:03:00.5]}
5... Nf6 {[%clk 0:02:59.1]} 6. Bg5 {[%clk 0:03:00.5]} 6... e6 {[%clk 0:02:58.7]}
7. Qd2 {[%clk 0:03:00.8]} 7... a6 {[%clk 0:02:57.2]} 8. O-O-O {[%clk 0:03:00.7]}
8... Bd7 {[%clk 0:02:57.6]} 9. f4 {[%clk 0:02:58.3]} 9... Be7 {[%clk 0:02:57.8]}
10. Bxf6 {[%clk 0:02:57.1]} 10... Bxf6 {[%clk 0:02:55.7]} 11. Nxc6 {[%clk
0:02:53.3]} 11... Bxc6 {[%clk 0:02:55.9]} 12. Kb1 {[%clk 0:02:53.7]} 12... O-O
{[%clk 0:02:43.2]} 13. Bd3 {[%clk 0:02:51.7]} 13... Qb6 {[%clk 0:02:26.6]} 14.
g4 {[%clk 0:02:49.9]} 14... Bd4 {[%clk 0:02:12]} 15. Rde1 {[%clk 0:02:41.4]}
15... Qb4 {[%clk 0:02:03.4]} 16. a3 {[%clk 0:02:35.3]} 16... Bxc3 {[%clk
0:02:02.8]} 17. Qxc3 {[%clk 0:02:36.2]} 17... Qxc3 {[%clk 0:02:03.2]} 18. bxc3
{[%clk 0:02:37.1]} 18... Rfc8 {[%clk 0:02:00.4]} 19. Re3 {[%clk 0:02:35.6]}
19... h6 {[%clk 0:01:59.3]} 20. Rg1 {[%clk 0:02:33.1]} 20... Kf8 {[%clk
0:01:58.6]} 21. h4 {[%clk 0:02:33.5]} 21... Ke7 {[%clk 0:01:54.3]} 22. g5 {[%clk
0:02:33.1]} 22... hxg5 {[%clk 0:01:54.3]} 23. Rxg5 {[%clk 0:02:32.8]} 23... g6
{[%clk 0:01:54.6]} 24. f5 {[%clk 0:02:28.7]} 24... gxf5 {[%clk 0:01:53]} 25.
exf5 {[%clk 0:02:26.1]} 25... e5 {[%clk 0:01:53.2]} 26. h5 {[%clk 0:02:17.5]}
26... Kf6 {[%clk 0:01:53.1]} 27. Reg3 {[%clk 0:02:16.2]} 27... Bf3 {[%clk
0:01:23]} 28. Kc1 {[%clk 0:01:42.6]} 28... e4 {[%clk 0:01:14.4]} 29. Kd2 {[%clk
0:01:41.2]} 29... exd3 {[%clk 0:01:13.2]} 30. h6 {[%clk 0:01:35.4]} 30... Rh8
{[%clk 0:01:04.3]} 31. h7 {[%clk 0:01:34.4]} 31... Rxh7 {[%clk 0:01:03.7]} 0-1

[Event "Early-Titled-Tuesday-Blitz-January-30-2024"]
[Site "Chess.com"]
[Date "2024.01.30"]
[Round "11"]
[White "SharapovEvgeny"]
[Black "topce"]
[Result "1-0"]
[WhiteElo "2560"]
[BlackElo "2404"]
[TimeControl "180+1"]
[EndTime "10:09:40 PST"]
[Termination "SharapovEvgeny won on time"]

1. e4 {[%clk 0:03:00.1]} 1... e6 {[%clk 0:02:59.4]} 2. d4 {[%clk 0:03:00]} 2...
d5 {[%clk 0:02:59.3]} 3. Nc3 {[%clk 0:03:00.7]} 3... Nf6 {[%clk 0:02:58]} 4. e5
{[%clk 0:03:00.8]} 4... Nfd7 {[%clk 0:02:58]} 5. f4 {[%clk 0:03:01.5]} 5... c5
{[%clk 0:02:57.7]} 6. Nf3 {[%clk 0:03:02.3]} 6... Nc6 {[%clk 0:02:56.5]} 7. Be3
{[%clk 0:03:02.4]} 7... a6 {[%clk 0:02:56.2]} 8. Qd2 {[%clk 0:03:02.2]} 8... b5
{[%clk 0:02:53.6]} 9. Nd1 {[%clk 0:03:02.1]} 9... cxd4 {[%clk 0:02:47.2]} 10.
Nxd4 {[%clk 0:03:01.7]} 10... Nxd4 {[%clk 0:02:44.6]} 11. Bxd4 {[%clk
0:03:01.8]} 11... Bb7 {[%clk 0:02:42.9]} 12. Bd3 {[%clk 0:03:00.4]} 12... Nc5
{[%clk 0:02:42.9]} 13. O-O {[%clk 0:02:55.3]} 13... Ne4 {[%clk 0:02:40.5]} 14.
Qe3 {[%clk 0:02:52.1]} 14... Qc7 {[%clk 0:02:31.7]} 15. Nf2 {[%clk 0:02:51]}
15... Nxf2 {[%clk 0:02:06.6]} 16. Rxf2 {[%clk 0:02:50.8]} 16... Rc8 {[%clk
0:02:07.1]} 17. f5 {[%clk 0:02:49.7]} 17... Bc5 {[%clk 0:02:06.6]} 18. c3 {[%clk
0:02:46.6]} 18... b4 {[%clk 0:01:31.7]} 19. fxe6 {[%clk 0:02:45.7]} 19... fxe6
{[%clk 0:01:30.2]} 20. Raf1 {[%clk 0:02:45.2]} 20... bxc3 {[%clk 0:01:18.5]} 21.
bxc3 {[%clk 0:02:44.9]} 21... Bxd4 {[%clk 0:00:57.8]} 22. cxd4 {[%clk
0:02:44.5]} 22... Qe7 {[%clk 0:00:57.3]} 23. Qh3 {[%clk 0:02:36.3]} 23... Rc3
{[%clk 0:00:44.2]} 24. Bg6+ {[%clk 0:02:33.1]} 24... Kd8 {[%clk 0:00:36]} 25.
Qxc3 {[%clk 0:02:29.6]} 25... hxg6 {[%clk 0:00:30.1]} 26. Rf7 {[%clk 0:02:28.7]}
26... Rxh2 {[%clk 0:00:01.7]} 27. Rxe7 {[%clk 0:02:26.2]} 27... Rxg2+ {[%clk
0:00:01.2]} 28. Kxg2 {[%clk 0:02:26.1]} 1-0

[Event "Early-Titled-Tuesday-Blitz-January-30-2024"]
[Site "Chess.com"]
[Date "2024.01.30"]
[Round "11"]
[White "oogee"]
[Black "mary-sanna"]
[Result "0-1"]
[WhiteElo "2300"]
[BlackElo "2201"]
[TimeControl "180+1"]
[EndTime "10:09:51 PST"]
[Termination "mary-sanna won by checkmate"]

1. d4 {[%clk 0:03:00.9]} 1... d5 {[%clk 0:02:59.7]} 2. c4 {[%clk 0:03:00.5]}
2... e6 {[%clk 0:02:59.2]} 3. Nc3 {[%clk 0:03:00.2]} 3... Nf6 {[%clk 0:02:59]}
4. Bg5 {[%clk 0:03:00]} 4... Be7 {[%clk 0:02:49.7]} 5. e3 {[%clk 0:02:59.6]}
5... O-O {[%clk 0:02:49]} 6. Qc2 {[%clk 0:02:59.6]} 6... h6 {[%clk 0:02:48.6]}
7. Bh4 {[%clk 0:02:58.9]} 7... c5 {[%clk 0:02:43.2]} 8. Nge2 {[%clk 0:02:54.4]}
8... Nc6 {[%clk 0:02:42.4]} 9. Rd1 {[%clk 0:02:47.2]} 9... Nb4 {[%clk
0:02:22.2]} 10. Qb3 {[%clk 0:02:42]} 10... dxc4 {[%clk 0:02:12.9]} 11. Qxc4
{[%clk 0:02:41.3]} 11... Nc2+ {[%clk 0:02:01.3]} 12. Kd2 {[%clk 0:02:40.3]}
12... Nb4 {[%clk 0:01:57.9]} 13. Kc1 {[%clk 0:02:29.2]} 13... Qa5 {[%clk
0:01:39.2]} 14. Kb1 {[%clk 0:02:13.9]} 14... Rd8 {[%clk 0:01:26.4]} 15. Nc1
{[%clk 0:02:09.8]} 15... cxd4 {[%clk 0:01:19.2]} 16. Nb3 {[%clk 0:02:01.3]}
16... Qh5 {[%clk 0:01:11.1]} 17. Rxd4 {[%clk 0:01:54.6]} 17... Rxd4 {[%clk
0:01:06.3]} 18. Qxd4 {[%clk 0:01:54.4]} 18... Nc6 {[%clk 0:01:01.1]} 19. Qa4
{[%clk 0:01:53.8]} 19... Bd7 {[%clk 0:00:50.5]} 20. Be2 {[%clk 0:01:53.3]} 20...
Qg6+ {[%clk 0:00:48.7]} 21. Ka1 {[%clk 0:01:51.7]} 21... Nb4 {[%clk 0:00:39.9]}
22. Qa5 {[%clk 0:01:35.5]} 22... Nc2+ {[%clk 0:00:38.9]} 23. Kb1 {[%clk
0:01:35.9]} 23... Na3+ {[%clk 0:00:38.5]} 24. Ka1 {[%clk 0:01:36.1]} 24... Qb1+
{[%clk 0:00:35.4]} 25. Nxb1 {[%clk 0:01:36.4]} 25... Nc2# {[%clk 0:00:35.7]} 0-1

[Event "Early-Titled-Tuesday-Blitz-January-30-2024"]
[Site "Chess.com"]
[Date "2024.01.30"]
[Round "11"]
[White "whitemirrorninja"]
[Black "Louis-Paulsen-Fan"]
[Result "0-1"]
[WhiteElo "2450"]
[BlackElo "2295"]
[TimeControl "180+1"]
[EndTime "10:09:53 PST"]
[Termination "Louis-Paulsen-Fan won by resignation"]

1. d4 {[%clk 0:03:00.9]} 1... d5 {[%clk 0:02:59.6]} 2. Nf3 {[%clk 0:03:01.8]}
2... e6 {[%clk 0:02:59.1]} 3. Bg5 {[%clk 0:03:01.2]} 3... Be7 {[%clk 0:02:57.5]}
4. h4 {[%clk 0:02:59.4]} 4... c5 {[%clk 0:02:55.9]} 5. e3 {[%clk 0:02:58.8]}
5... Nc6 {[%clk 0:02:55.9]} 6. c3 {[%clk 0:02:58.8]} 6... Nf6 {[%clk 0:02:52]}
7. Nbd2 {[%clk 0:02:58.3]} 7... Ne4 {[%clk 0:02:41.2]} 8. Bxe7 {[%clk
0:02:52.7]} 8... Qxe7 {[%clk 0:02:40]} 9. Bd3 {[%clk 0:02:53.5]} 9... f5 {[%clk
0:02:37]} 10. dxc5 {[%clk 0:02:39.8]} 10... Qxc5 {[%clk 0:02:32.8]} 11. Nb3
{[%clk 0:02:38.3]} 11... Qe7 {[%clk 0:02:32]} 12. Nbd4 {[%clk 0:02:36.8]} 12...
O-O {[%clk 0:02:28.6]} 13. Nxc6 {[%clk 0:02:34.3]} 13... bxc6 {[%clk 0:02:28.5]}
14. Ne5 {[%clk 0:02:33.1]} 14... c5 {[%clk 0:02:18.6]} 15. Bxe4 {[%clk
0:02:32.1]} 15... fxe4 {[%clk 0:02:16.9]} 16. f4 {[%clk 0:02:23.2]} 16... exf3
{[%clk 0:02:13.5]} 17. gxf3 {[%clk 0:02:20.8]} 17... Qf6 {[%clk 0:01:48.3]} 18.
f4 {[%clk 0:02:18.3]} 18... Qf5 {[%clk 0:01:48.7]} 19. Qd2 {[%clk 0:02:10.2]}
19... Ba6 {[%clk 0:01:45.5]} 20. Kf2 {[%clk 0:02:07.1]} 20... Rad8 {[%clk
0:01:32.6]} 21. Nf3 {[%clk 0:02:04.1]} 21... Bb7 {[%clk 0:01:23.5]} 22. Rhg1
{[%clk 0:02:01.5]} 22... d4 {[%clk 0:01:17.7]} 23. cxd4 {[%clk 0:01:56]} 23...
cxd4 {[%clk 0:01:17.4]} 24. Nxd4 {[%clk 0:01:51.5]} 24... Qe4 {[%clk 0:01:11]}
25. Rg3 {[%clk 0:01:44.4]} 25... e5 {[%clk 0:01:07.2]} 26. Rag1 {[%clk
0:01:44.6]} 26... exd4 {[%clk 0:01:01.6]} 27. Rxg7+ {[%clk 0:01:41.6]} 27... Kh8
{[%clk 0:01:01.8]} 28. Rxb7 {[%clk 0:01:40.4]} 28... dxe3+ {[%clk 0:00:55.3]}
29. Qxe3 {[%clk 0:01:41.3]} 29... Rxf4+ {[%clk 0:00:52.1]} 30. Ke2 {[%clk
0:01:38.6]} 30... Qc2+ {[%clk 0:00:48.8]} 31. Qd2 {[%clk 0:01:35.9]} 0-1